bitfinex/quotes_BTCUSD_20220201
["timestamp","ask_amount","ask_price","bid_price","bid_amount"]
[1643748300995,0.064628,38695.0,38688.0,0.16920173]
[1643748302293,0.064628,38695.0,38687.0,0.19558833]
[1643748302491,0.064628,38695.0,38689.0,0.05]
[1643748302892,0.064628,38695.0,38688.0,0.01983042]
[1643748303344,0.064628,38695.0,38687.0,0.14558833]
[1643748303536,0.14632666,38695.0,38687.0,0.3808024]
[1643748303733,0.114628,38695.0,38691.0,0.1]
[1643748303933,0.114628,38695.0,38687.0,0.3757471]
[1643748304133,0.114628,38695.0,38687.0,0.3818723]
[1643748304333,0.064628,38695.0,38687.0,0.35160953]
[1643748304533,0.05,38693.0,38687.0,0.35160953]
[1643748304734,0.05,38693.0,38687.0,0.28628397]
[1643748304934,0.05,38693.0,38691.0,0.11966053]
[1643748305135,0.05,38693.0,38687.0,0.22996128]
[1643748305335,0.05,38693.0,38691.0,0.05]
[1643748306139,0.114628,38697.0,38692.0,0.05]
[1643748306140,0.164628,38697.0,38692.0,0.05]
[1643748306336,0.164628,38697.0,38693.0,0.05]
[1643748306736,0.164628,38697.0,38689.0,0.28334945]
[1643748306938,0.164628,38697.0,38687.0,0.1]
[1643748306939,0.064634,38693.0,38687.0,0.1]
[1643748307984,0.064634,38693.0,38687.0,0.05]
[1643748308586,0.064634,38693.0,38688.0,0.09764859]
[1643748308793,0.164628,38697.0,38692.0,0.05]
[1643748308988,0.164628,38697.0,38694.0,0.05]
[1643748309186,0.164628,38697.0,38694.0,0.21136364]
[1643748309587,0.05,38697.0,38695.0,0.29784871]
[1643748309794,0.00129359,38698.0,38697.0,0.05]
[1643748310387,0.06462416,38702.0,38697.0,0.05]
[1643748310590,0.129253,38701.0,38699.0,0.1]
[1643748310844,0.179253,38701.0,38699.0,0.1]
[1643748311239,0.179253,38701.0,38696.0,0.05]
[1643748311447,0.05,38700.0,38695.0,0.45492035]
[1643748311739,0.064621,38701.0,38699.0,0.05]
[1643748311940,0.00129362,38700.0,38699.0,0.05]
[1643748312943,0.05,38706.0,38705.0,0.1177366]
[1643748313142,0.069256,38706.0,38705.0,0.1177366]
[1643748313342,0.069256,38706.0,38705.0,0.6677366]
[1643748313542,0.05,38706.0,38705.0,0.1177366]
[1643748313742,0.0051737,38707.0,38705.0,0.1177366]
[1643748314142,0.05,38710.0,38705.0,0.1177366]
[1643748314342,0.00129362,38708.0,38705.0,0.1177366]
[1643748314591,0.019256,38707.0,38705.0,0.1177366]
[1643748315292,0.019256,38707.0,38706.0,0.1]
[1643748315491,0.00129362,38708.0,38706.0,0.1]
[1643748315691,0.019256,38707.0,38706.0,0.1]
[1643748316094,0.00129362,38708.0,38701.0,0.28127015]
[1643748316297,0.00129362,38708.0,38707.0,0.05]
[1643748316501,0.06455539,38712.0,38707.0,0.05]
[1643748316695,0.01972909,38712.0,38707.0,0.05]
[1643748316895,0.01972909,38712.0,38710.0,0.05]
[1643748317295,0.01972909,38712.0,38710.0,0.14889835]
[1643748317695,0.01455539,38712.0,38710.0,0.14889835]
[1643748318350,0.01455539,38712.0,38710.0,0.3872296]
[1643748318744,0.01455539,38712.0,38710.0,0.23663835]
[1643748319345,0.01455539,38712.0,38710.0,0.14889835]
[1643748319545,0.01455539,38712.0,38711.0,0.11136364]
[1643748320747,0.001,38716.0,38712.0,1.3]
[1643748320949,0.001,38716.0,38715.0,0.05]
[1643748321146,0.001,38716.0,38715.0,1.96257942]
[1643748321650,0.001,38716.0,38715.0,2.22214475]
[1643748322099,0.00231234,38718.0,38717.0,0.05]
[1643748322100,0.00031234,38718.0,38717.0,0.05]
[1643748322302,0.002,38721.0,38718.0,1.3]
[1643748322505,0.001,38727.0,38720.0,1.3]
[1643748322707,0.001,38727.0,38722.0,1.35]
[1643748322901,0.0043,38728.0,38724.0,1.4]
[1643748323101,0.0043,38728.0,38726.0,0.05]
[1643748323301,0.002,38729.0,38728.0,1.0]
[1643748323500,0.002,38729.0,38728.0,1.348687]
[1643748323699,0.002,38729.0,38728.0,1.400587]
[1643748324100,0.002,38729.0,38728.0,1.500587]
[1643748324601,0.002,38729.0,38728.0,1.200587]
[1643748325002,0.002,38729.0,38728.0,0.16326364]
[1643748325202,0.002,38729.0,38728.0,0.46326364]
[1643748325401,0.002,38729.0,38728.0,0.16326364]
[1643748325601,0.002,38729.0,38728.0,0.11136364]
[1643748325844,0.11140774,38727.0,38726.0,0.05]
[1643748326043,0.11140774,38727.0,38719.0,0.1169]
[1643748326044,0.36537359,38727.0,38721.0,0.1]
[1643748326240,0.16140774,38727.0,38722.0,0.05]
[1643748326439,0.16140774,38727.0,38724.0,0.02013008]
[1643748326642,0.15640774,38727.0,38725.0,0.05]
[1643748326944,0.11140774,38727.0,38726.0,0.05]
[1643748327339,0.11140774,38727.0,38726.0,0.99273151]
[1643748327540,0.11140774,38727.0,38726.0,1.26812593]
[1643748327741,0.11140774,38727.0,38726.0,0.99273151]
[1643748327941,0.11140774,38727.0,38726.0,0.19273151]
[1643748328140,0.11140774,38727.0,38726.0,0.05]
[1643748328741,0.11140774,38727.0,38725.0,0.05]
[1643748329793,0.10640774,38727.0,38725.0,0.045]
[1643748330394,0.10640774,38727.0,38726.0,0.05]
[1643748330594,0.10640774,38727.0,38725.0,0.045]
[1643748330793,0.10640774,38727.0,38721.0,0.05]
[1643748330794,0.15640774,38727.0,38721.0,0.05]
[1643748331394,0.15640774,38727.0,38723.0,0.10980406]
[1643748331596,0.15640774,38727.0,38725.0,0.045]
[1643748331996,0.15640774,38727.0,38726.0,0.698687]
[1643748332597,0.10140774,38727.0,38726.0,1.648687]
[1643748332802,0.08750774,38727.0,38726.0,1.99643204]
[1643748332998,0.00130576,38728.0,38727.0,1.3]
[1643748333197,0.002,38729.0,38727.0,1.700587]
[1643748333446,0.00330576,38729.0,38728.0,1.648687]
[1643748333642,0.00330576,38729.0,38728.0,1.700587]
[1643748334440,0.002,38729.0,38728.0,1.84600653]
[1643748334644,0.002,38729.0,38728.0,0.54600653]
[1643748334847,0.002,38729.0,38728.0,0.400587]
[1643748335046,0.129132,38734.0,38728.0,0.445587]
[1643748335240,0.229132,38734.0,38728.0,0.045]
[1643748335443,0.229132,38734.0,38729.0,0.11312123]
[1643748335444,0.05,38734.0,38729.0,0.11312123]
[1643748335641,0.05,38734.0,38732.0,0.045]
[1643748335841,0.0006205,38735.0,38733.0,0.05]
[1643748336141,0.0006205,38735.0,38733.0,0.31790661]
[1643748336442,0.0006205,38737.0,38736.0,0.11118135]
[1643748336740,0.0006205,38737.0,38736.0,0.50486835]
[1643748337798,0.0006205,38737.0,38736.0,0.15618135]
[1643748338000,0.0006205,38737.0,38736.0,0.50486835]
[1643748338600,0.0006205,38737.0,38736.0,0.15618135]
[1643748338801,0.0006205,38737.0,38736.0,0.045]
[1643748341038,0.0006205,38737.0,38736.0,0.04]
[1643748341438,0.0506205,38737.0,38736.0,0.04]
[1643748341839,0.0006205,38737.0,38736.0,0.04]
[1643748342038,0.0006205,38737.0,38736.0,0.388687]
[1643748343639,0.0006205,38737.0,38736.0,0.62048262]
[1643748344239,0.0004435,38737.0,38736.0,0.388687]
[1643748344441,0.0004435,38737.0,38736.0,0.04]
[1643748345495,0.0004435,38737.0,38736.0,0.61474264]
[1643748345895,0.0004435,38737.0,38736.0,0.70134413]
[1643748346095,0.0004435,38737.0,38736.0,0.47528849]
[1643748346996,0.0004435,38737.0,38736.0,0.388687]
[1643748348194,0.0004435,38737.0,38736.0,0.04]
[1643748349940,0.01013131,38735.0,38718.0,0.9621]
[1643748350147,0.01013131,38735.0,38731.0,0.05]
[1643748350340,0.01013131,38735.0,38732.0,0.348687]
[1643748350546,0.01013131,38735.0,38732.0,0.36753717]
[1643748350941,0.01013131,38735.0,38733.0,0.10330631]
[1643748351441,0.01013131,38735.0,38734.0,0.35]
[1643748351841,0.01013131,38735.0,38732.0,0.01885017]
[1643748352292,0.01013131,38735.0,38733.0,0.348687]
[1643748352493,0.01013131,38735.0,38732.0,0.06885017]
[1643748352693,0.0114368,38735.0,38732.0,0.06885017]
[1643748352892,0.0114368,38735.0,38733.0,0.11347888]
[1643748353295,0.0114368,38735.0,38734.0,0.898687]
[1643748353494,0.0114368,38735.0,38734.0,0.55]
[1643748353694,0.01013131,38735.0,38734.0,0.55]
[1643748353895,0.01013131,38735.0,38734.0,0.898687]
[1643748354897,0.01013131,38735.0,38734.0,0.55]
[1643748355700,0.00513131,38735.0,38734.0,0.55]
[1643748356440,0.00513131,38735.0,38734.0,0.898687]
[1643748357039,0.00513131,38735.0,38734.0,0.98030035]
[1643748358044,0.00513131,38735.0,38734.0,1.38030035]
[1643748358248,0.00513131,38735.0,38734.0,0.98030035]
[1643748358642,0.00513131,38735.0,38734.0,0.948687]
[1643748358842,0.00513131,38735.0,38734.0,1.248687]
[1643748359693,0.00513131,38735.0,38734.0,1.34157247]
[1643748359895,0.00513131,38735.0,38734.0,1.79157247]
[1643748360093,0.00513131,38735.0,38734.0,1.74157247]
[1643748360294,0.00513131,38735.0,38734.0,1.79157247]
[1643748360493,0.00513131,38735.0,38734.0,1.74157247]
[1643748361595,0.00513131,38735.0,38734.0,1.34157247]
[1643748362797,0.00513131,38735.0,38734.0,1.74157247]
[1643748362997,0.00513131,38735.0,38734.0,1.79157247]
[1643748363347,0.00513131,38735.0,38734.0,1.34157247]
[1643748364147,0.00513131,38735.0,38734.0,1.39157247]
[1643748365350,0.00513131,38735.0,38734.0,0.348687]
[1643748365552,0.00513131,38735.0,38732.0,0.05]
[1643748365952,0.00513131,38735.0,38730.0,0.05]
[1643748366154,0.00317141,38735.0,38731.0,0.348687]
[1643748366351,0.00317141,38735.0,38730.0,0.05]
[1643748366559,0.00317141,38735.0,38727.0,0.6147]
[1643748366754,0.00317141,38735.0,38728.0,0.5]
[1643748366755,0.0519,38734.0,38728.0,0.5]
[1643748366952,0.0519,38734.0,38727.0,0.1147]
[1643748367194,0.00130549,38733.0,38730.0,0.02010156]
[1643748367495,0.00130549,38733.0,38730.0,0.27671328]
[1643748367496,0.05320549,38733.0,38730.0,0.27671328]
[1643748367893,0.05320549,38733.0,38730.0,0.02010156]
[1643748368095,0.0519,38733.0,38730.0,0.02010156]
[1643748368295,0.05320549,38733.0,38730.0,0.02010156]
[1643748369297,0.22513122,38732.0,38730.0,0.02010156]
[1643748369501,0.22513122,38732.0,38722.0,0.22685337]
[1643748369502,0.071156,38731.0,38722.0,0.22685337]
[1643748369698,0.071156,38731.0,38722.0,0.1174]
[1643748370097,0.071156,38731.0,38716.0,0.29534321]
[1643748370297,0.071156,38731.0,38718.0,0.5]
[1643748370298,0.07966332,38729.0,38718.0,0.5]
[1643748370499,0.0519,38728.0,38718.0,0.5]
[1643748370698,0.0519,38728.0,38720.0,0.10201886]
[1643748370944,0.06458536,38726.0,38716.0,0.12421587]
[1643748371254,0.114584,38729.0,38722.0,0.01861897]
[1643748371255,0.071156,38725.0,38722.0,0.01861897]
[1643748371446,0.0519,38724.0,38716.0,0.00131587]
[1643748371644,0.2416672,38728.0,38715.0,0.010337]
[1643748371846,0.0519,38724.0,38716.0,0.0013158]
[1643748372148,0.23317958,38723.0,38716.0,0.0013158]
[1643748372347,0.071156,38722.0,38716.0,0.0013158]
[1643748372549,0.064601,38720.0,38716.0,0.0013158]
[1643748372748,0.3628232,38719.0,38716.0,0.0013158]
[1643748372948,0.3628232,38719.0,38712.0,0.1136909]
[1643748373150,0.06460473,38717.0,38716.0,0.00131577]
[1643748373347,0.88576073,38717.0,38716.0,0.00131577]
[1643748373549,0.93576073,38717.0,38716.0,0.00131577]
[1643748373750,1.03576073,38717.0,38716.0,0.00131577]
[1643748374147,1.03576073,38717.0,38709.0,0.11745828]
[1643748374449,1.03576073,38717.0,38700.0,0.5683]
[1643748374450,0.25844677,38713.0,38700.0,0.5683]
[1643748374702,0.0519,38712.0,38700.0,0.5683]
[1643748375100,0.0519,38712.0,38699.0,0.4857]
[1643748375301,0.0519,38712.0,38699.0,0.14563437]
[1643748375503,0.08184363,38711.0,38705.0,0.11877258]
[1643748375701,0.28174084,38710.0,38705.0,0.11877258]
[1643748375902,0.0519,38710.0,38705.0,0.11877258]
[1643748376108,0.3962,38721.0,38716.0,0.11300033]
[1643748376309,0.388,38724.0,38716.0,0.11300033]
[1643748376506,0.3624,38729.0,38708.0,0.2416672]
[1643748376704,0.3624,38729.0,38716.0,0.00131579]
[1643748376705,0.07944977,38722.0,38716.0,0.00131579]
[1643748376908,0.0519,38728.0,38716.0,0.00131579]
[1643748377105,0.3624,38729.0,38716.0,0.00131579]
[1643748377106,0.064591,38726.0,38716.0,0.00131579]
[1643748377307,0.12917477,38726.0,38716.0,0.00131579]
[1643748377509,0.5055,38730.0,38717.0,0.09416143]
[1643748377706,0.00317141,38735.0,38725.0,0.1023439]
[1643748377906,0.00130519,38732.0,38725.0,0.1023439]
[1643748378107,0.00130519,38732.0,38729.0,0.27861872]
[1643748378360,0.00130519,38732.0,38725.0,0.26867534]
[1643748378853,0.00317141,38735.0,38725.0,0.38517534]
[1643748379051,0.06457208,38733.0,38725.0,0.38517534]
[1643748379250,0.00130544,38732.0,38725.0,0.40387051]
[1643748379449,0.00130544,38732.0,38725.0,0.62877565]
[1643748379854,0.10146356,38732.0,38725.0,0.23753907]
[1643748380055,0.10146356,38732.0,38725.0,0.01869517]
[1643748380056,0.019256,38731.0,38725.0,0.01869517]
[1643748380452,0.15146356,38732.0,38725.0,0.01869517]
[1643748380852,0.05130544,38732.0,38725.0,0.01869517]
[1643748381052,0.05130544,38732.0,38725.0,0.03988623]
[1643748381251,0.06457208,38733.0,38725.0,0.03988623]
[1643748381252,0.11457208,38733.0,38725.0,0.03988623]
[1643748381460,0.019256,38732.0,38725.0,0.03988623]
[1643748381654,0.02056144,38732.0,38725.0,0.03988623]
[1643748381853,0.02056144,38732.0,38720.0,0.18809572]
[1643748382104,0.0645791,38729.0,38720.0,0.18809572]
[1643748382303,0.0645791,38729.0,38723.0,0.11260173]
[1643748382503,0.00130544,38732.0,38723.0,0.11260173]
[1643748382504,0.05,38732.0,38723.0,0.11260173]
[1643748382706,0.00130531,38732.0,38723.0,0.11260173]
[1643748383105,0.00130531,38732.0,38723.0,0.39867684]
[1643748383306,0.08826712,38732.0,38723.0,0.39867684]
[1643748383712,0.20153479,38732.0,38719.0,0.34378998]
[1643748383908,0.11587839,38732.0,38719.0,0.1144]
[1643748384508,0.05130541,38732.0,38720.0,0.23494511]
[1643748384709,0.00130541,38732.0,38725.0,0.12023916]
[1643748384909,0.00317141,38735.0,38725.0,0.12023916]
[1643748385108,0.00130536,38732.0,38719.0,0.243534]
[1643748385310,0.00130536,38732.0,38719.0,0.1144]
[1643748385511,0.05320536,38732.0,38718.0,0.29151205]
[1643748385710,0.019256,38731.0,38716.0,0.00131591]
[1643748385950,0.05320536,38732.0,38716.0,0.00131591]
[1643748385951,1.4299,38730.0,38716.0,0.00131591]
[1643748386149,0.06458531,38726.0,38716.0,0.23196216]
[1643748386346,0.06458531,38726.0,38722.0,0.11064644]
[1643748386550,0.00130527,38732.0,38722.0,0.11064644]
[1643748386752,0.05,38729.0,38722.0,0.11064644]
[1643748387148,0.00130527,38732.0,38724.0,0.24159582]
[1643748387346,0.05,38733.0,38724.0,0.24159582]
[1643748387548,0.00130534,38732.0,38724.0,0.24159582]
[1643748388147,0.00130534,38732.0,38728.0,0.11221655]
[1643748388348,0.019256,38731.0,38728.0,0.11221655]
[1643748388747,0.00130549,38732.0,38728.0,0.11221655]
[1643748389353,0.019256,38731.0,38724.0,0.24159582]
[1643748389600,0.06457763,38730.0,38721.0,0.1129]
[1643748389799,0.11457763,38730.0,38721.0,0.1129]
[1643748390507,0.09378027,38722.0,38717.0,0.08933232]
[1643748390704,0.09378027,38722.0,38720.0,0.01967874]
[1643748390705,0.14378027,38722.0,38720.0,0.01967874]
[1643748390901,0.14378027,38722.0,38712.0,0.190722]
[1643748390902,0.05,38722.0,38712.0,0.190722]
[1643748391102,0.05,38722.0,38716.0,0.0013158]
[1643748391302,1.55907132,38727.0,38716.0,0.0013158]
[1643748391501,0.06458543,38725.0,38716.0,0.0013158]
[1643748391701,0.06458543,38725.0,38718.0,0.10516034]
[1643748392101,0.10490507,38724.0,38718.0,0.10516034]
[1643748392301,0.10490507,38724.0,38716.0,0.00131583]
[1643748392499,0.15490507,38724.0,38716.0,0.00131583]
[1643748393102,0.15490507,38724.0,38717.0,0.01855407]
[1643748393103,0.10490507,38724.0,38717.0,0.01855407]
[1643748393357,0.0645791,38728.0,38721.0,0.10429337]
[1643748393549,0.12915585,38732.0,38721.0,0.10429337]
[1643748393550,0.130461,38732.0,38721.0,0.10429337]
[1643748393749,0.05,38731.0,38721.0,0.10429337]
[1643748394147,0.280461,38732.0,38721.0,0.34073925]
[1643748394450,0.08989736,38728.0,38718.0,0.1242]
[1643748394847,0.05,38728.0,38718.0,0.1242]
[1643748395148,0.05,38728.0,38721.0,0.02082643]
[1643748395346,0.06457313,38731.0,38721.0,0.02082643]
[1643748395949,0.0945169,38726.0,38718.0,0.1242]
[1643748396150,0.0945169,38726.0,38716.0,0.00131592]
[1643748396349,0.1445169,38726.0,38716.0,0.00131592]
[1643748396748,0.019256,38725.0,38716.0,0.00131592]
[1643748397115,0.1445169,38726.0,38716.0,0.00131592]
[1643748397116,0.05,38726.0,38721.0,0.15175855]
[1643748397309,0.05,38731.0,38718.0,0.02109472]
[1643748397510,0.1,38728.0,38718.0,0.02109472]
[1643748397809,0.05,38726.0,38718.0,0.02109472]
[1643748398009,0.08786047,38724.0,38716.0,0.00131583]
[1643748398211,0.064601,38719.0,38707.0,0.1194]
[1643748398415,0.064601,38719.0,38716.0,0.00131585]
[1643748398608,0.019256,38718.0,38716.0,0.00131585]
[1643748399410,0.08136066,38715.0,38709.0,0.41234384]
[1643748399614,0.13136066,38715.0,38709.0,0.17358303]
[1643748399810,0.13136066,38715.0,38707.0,0.1194]
[1643748400209,0.23330947,38714.0,38707.0,0.1194]
[1643748400710,0.23330947,38714.0,38709.0,0.0013159]
[1643748401355,0.06460109,38713.0,38709.0,0.0013159]
[1643748401551,0.23329034,38712.0,38709.0,0.0013159]
[1643748401750,0.06460109,38713.0,38707.0,0.1194]
[1643748401950,0.06460109,38713.0,38709.0,0.00131589]
[1643748402350,0.06460109,38713.0,38709.0,0.2190768]
[1643748402549,0.06460109,38713.0,38709.0,0.00131589]
[1643748402951,0.06460109,38713.0,38707.0,0.15606299]
[1643748403149,0.06460109,38713.0,38709.0,0.00131591]
[1643748403652,0.06459673,38716.0,38710.0,0.28341992]
[1643748404251,0.06459673,38716.0,38711.0,0.00131588]
[1643748404697,0.019256,38715.0,38711.0,0.00131588]
[1643748405195,0.10155341,38712.0,38711.0,0.00131588]
[1643748405392,0.10155341,38712.0,38710.0,0.01986762]
[1643748405593,0.10155341,38712.0,38711.0,0.00131588]
[1643748405791,0.17080941,38712.0,38711.0,0.00131588]
[1643748406593,0.17080941,38712.0,38708.0,0.15206581]
[1643748406594,0.05,38712.0,38708.0,0.15206581]
[1643748406793,0.11460698,38713.0,38710.0,0.00131589]
[1643748406993,0.06460698,38713.0,38710.0,0.00131589]
[1643748407198,0.11460698,38713.0,38710.0,0.00131589]
[1643748407394,0.06460698,38713.0,38710.0,0.00131589]
[1643748407793,0.15621211,38713.0,38705.0,0.1225]
[1643748407994,0.20621211,38713.0,38710.0,0.00131589]
[1643748408193,0.11460698,38713.0,38710.0,0.00131589]
[1643748408452,0.06460698,38713.0,38710.0,0.00131589]
[1643748408851,0.06460698,38713.0,38707.0,0.1746306]
[1643748409053,0.06460698,38713.0,38710.0,0.09617943]
[1643748409253,0.21067981,38716.0,38711.0,0.22742422]
[1643748409254,0.06459815,38716.0,38711.0,0.22742422]
[1643748409552,0.3932,38724.0,38716.0,0.10177474]
[1643748409756,0.019256,38723.0,38716.0,0.10177474]
[1643748409951,0.60446262,38728.0,38716.0,0.10177474]
[1643748410253,0.019256,38727.0,38718.0,0.27640163]
[1643748410653,0.019256,38727.0,38718.0,0.27140163]
[1643748411250,0.06458699,38726.0,38718.0,0.27140163]
[1643748411451,0.019256,38725.0,38718.0,0.27140163]
[1643748411651,0.019256,38725.0,38716.0,0.10323863]
[1643748411851,0.069256,38725.0,38716.0,0.10323863]
[1643748412504,0.069256,38725.0,38712.0,0.612585]
[1643748412707,0.06458831,38723.0,38716.0,0.02031104]
[1643748412905,0.083847,38724.0,38716.0,0.02031104]
[1643748412906,0.32029618,38722.0,38716.0,0.02031104]
[1643748413106,1.478,38721.0,38716.0,0.02031104]
[1643748413306,0.019256,38720.0,38716.0,0.02031104]
[1643748413706,0.06459901,38719.0,38716.0,0.01884719]
[1643748413905,0.019256,38718.0,38716.0,0.020311]
[1643748414508,0.019256,38718.0,38716.0,0.14377247]
[1643748414707,0.11459901,38719.0,38716.0,0.020311]
[1643748414911,0.019256,38718.0,38716.0,0.01884719]
[1643748415108,0.05,38719.0,38715.0,0.00146382]
[1643748415307,0.05,38721.0,38715.0,0.00146382]
[1643748415706,0.05,38721.0,38718.0,0.12516495]
[1643748415950,0.019256,38720.0,38718.0,0.12516495]
[1643748416352,0.05,38721.0,38718.0,0.12516495]
[1643748416550,0.06459003,38722.0,38718.0,0.42209434]
[1643748416551,0.019256,38720.0,38718.0,0.42209434]
[1643748416750,0.06458533,38725.0,38718.0,0.42209434]
[1643748416950,0.4942,38728.0,38719.0,0.23122529]
[1643748417150,0.4942,38728.0,38724.0,0.12029311]
[1643748417350,0.019256,38727.0,38724.0,0.12029311]
[1643748417554,0.019256,38727.0,38724.0,0.41029142]
[1643748417751,0.00130527,38732.0,38724.0,0.41029142]
[1643748417953,0.019256,38731.0,38724.0,0.41029142]
[1643748418153,0.019256,38731.0,38720.0,0.22462656]
[1643748418154,0.06457686,38730.0,38720.0,0.22462656]
[1643748418351,0.019256,38729.0,38716.0,0.11996391]
[1643748418551,0.15,38731.0,38716.0,0.1185]
[1643748418752,0.2,38731.0,38716.0,0.11996393]
[1643748418953,0.019256,38730.0,38716.0,0.11996393]
[1643748419254,0.0645864,38726.0,38719.0,0.11535587]
[1643748419996,0.0645864,38726.0,38716.0,0.11996389]
[1643748420304,0.019256,38725.0,38716.0,0.11996389]
[1643748420494,0.06458976,38723.0,38716.0,0.11996389]
[1643748420698,0.12918276,38723.0,38716.0,0.11996389]
[1643748420893,0.019256,38722.0,38716.0,0.1185]
[1643748421095,0.019256,38722.0,38716.0,0.11996384]
[1643748421294,0.12918276,38723.0,38716.0,0.11996384]
[1643748421696,0.17918276,38723.0,38716.0,0.11996384]
[1643748422094,0.019256,38722.0,38716.0,0.1185]
[1643748422394,0.019256,38722.0,38716.0,0.00146384]
[1643748422599,0.0645994,38719.0,38716.0,0.00146384]
[1643748422795,0.066856,38718.0,38716.0,0.00146384]
[1643748423353,0.066856,38718.0,38707.0,0.22665753]
[1643748423552,0.12921102,38717.0,38715.0,0.00146382]
[1643748423848,0.419256,38716.0,38715.0,0.00146382]
[1643748424347,0.48386151,38716.0,38715.0,0.00146382]
[1643748424551,0.05,38715.0,38704.0,0.1125]
[1643748424755,0.05,38715.0,38698.0,0.05]
[1643748424756,0.4369566,38714.0,38710.0,0.02032521]
[1643748424950,1.8649566,38714.0,38710.0,0.02032521]
[1643748425151,1.378,38712.0,38698.0,0.05]
[1643748425350,0.06462783,38702.0,38696.0,0.26206533]
[1643748425556,0.23092371,38701.0,38696.0,0.26206533]
[1643748425752,0.28092371,38701.0,38693.0,0.6957]
[1643748425952,0.28092371,38701.0,38698.0,0.00146419]
[1643748426153,0.019256,38700.0,38698.0,0.00146419]
[1643748426752,0.06462626,38699.0,38698.0,0.00146419]
[1643748426953,0.28092371,38701.0,38694.0,0.2679001]
[1643748427195,0.05,38701.0,38698.0,0.17903036]
[1643748427398,0.238598,38709.0,38698.0,0.17903036]
[1643748427595,0.24762949,38710.0,38698.0,0.17903036]
[1643748427894,0.17922949,38710.0,38698.0,0.17903036]
[1643748428198,0.17922949,38710.0,38700.0,0.27633958]
[1643748428393,0.064618,38708.0,38702.0,0.00146409]
[1643748428593,0.019256,38707.0,38702.0,0.00146409]
[1643748428794,0.08386927,38707.0,38702.0,0.00146409]
[1643748429394,0.08386927,38707.0,38698.0,0.07953477]
[1643748429595,0.06461327,38707.0,38703.0,0.00146408]
[1643748429796,0.019256,38706.0,38703.0,0.00146408]
[1643748430498,0.019256,38706.0,38695.0,0.1176]
[1643748430499,1.91350359,38706.0,38695.0,0.1176]
[1643748430699,0.20180082,38705.0,38703.0,0.00146408]
[1643748430952,0.369256,38704.0,38703.0,0.00146408]
[1643748431150,0.06915104,38704.0,38703.0,0.00146408]
[1643748431549,0.08387822,38704.0,38703.0,0.00146408]
[1643748431849,0.08387822,38704.0,38695.0,0.08966519]
[1643748432051,0.06461327,38707.0,38702.0,0.0014641]
[1643748432251,0.019256,38706.0,38702.0,0.0014641]
[1643748432651,0.06461327,38707.0,38702.0,0.0014641]
[1643748432850,0.019256,38706.0,38702.0,0.0014641]
[1643748433052,0.019256,38706.0,38699.0,0.23699068]
[1643748433255,0.06461327,38707.0,38703.0,0.00146408]
[1643748433451,0.08387247,38706.0,38703.0,0.00146408]
[1643748433651,0.08387247,38706.0,38699.0,0.22244407]
[1643748433852,0.31076798,38706.0,38695.0,0.134241]
[1643748434055,0.18844032,38705.0,38695.0,0.1239]
[1643748434255,0.20769632,38705.0,38695.0,0.1239]
[1643748434456,2.86405553,38705.0,38695.0,0.1239]
[1643748434697,0.019256,38704.0,38695.0,0.1239]
[1643748434998,0.1,38705.0,38695.0,0.1239]
[1643748435198,0.06461327,38707.0,38699.0,0.10623031]
[1643748435401,0.24385236,38716.0,38700.0,0.23687508]
[1643748435402,0.12922845,38711.0,38700.0,0.23687508]
[1643748435597,0.12922845,38711.0,38699.0,0.10623031]
[1643748435904,0.05,38710.0,38699.0,0.32331502]
[1643748436698,0.06461199,38709.0,38701.0,0.00146231]
[1643748437099,0.019256,38708.0,38701.0,0.00146231]
[1643748437300,0.069256,38708.0,38701.0,0.00146231]
[1643748437498,0.119256,38708.0,38701.0,0.00146231]
[1643748437701,0.119256,38708.0,38695.0,0.1239]
[1643748437702,0.33246946,38707.0,38695.0,0.1239]
[1643748437900,0.12924016,38707.0,38701.0,0.00080764]
[1643748438100,0.14849475,38706.0,38701.0,0.00080764]
[1643748438369,0.06461775,38706.0,38702.0,0.09709868]
[1643748438660,0.1232,38713.0,38702.0,0.09709868]
[1643748438859,0.3963,38718.0,38708.0,0.12264632]
[1643748439057,0.3963,38718.0,38708.0,0.24287559]
[1643748439255,0.06982403,38715.0,38708.0,0.24287559]
[1643748439458,0.0052233,38715.0,38708.0,0.24287559]
[1643748439860,0.0052233,38715.0,38701.0,0.26664835]
[1643748440059,0.019256,38714.0,38702.0,0.12540647]
[1643748440259,0.25806468,38714.0,38702.0,0.12540647]
[1643748440457,0.0052233,38716.0,38702.0,0.12540647]
[1643748440757,0.019256,38715.0,38702.0,0.12540647]
[1643748440956,0.29404167,38715.0,38705.0,0.26434108]
[1643748441160,0.34365267,38715.0,38705.0,0.26434108]
[1643748441358,0.064605,38713.0,38705.0,0.26434108]
[1643748441558,0.24222022,38712.0,38701.0,0.00146084]
[1643748441757,0.24222022,38712.0,38701.0,0.01180084]
[1643748441957,0.29447567,38714.0,38701.0,0.00146084]
[1643748442197,0.34447567,38714.0,38701.0,0.00146084]
[1643748442597,0.34447567,38714.0,38702.0,0.2845414]
[1643748442999,0.40909167,38714.0,38702.0,0.2845414]
[1643748443201,0.40909067,38714.0,38702.0,0.2845414]
[1643748443400,0.06461066,38710.0,38701.0,0.0014608]
[1643748443601,0.064612,38711.0,38701.0,0.0014608]
[1643748443602,0.22853341,38709.0,38701.0,0.0014608]
[1643748443804,0.22853341,38709.0,38699.0,0.28366004]
[1643748444000,0.22853341,38709.0,38701.0,0.00146076]
[1643748444001,0.05,38709.0,38701.0,0.00146076]
[1643748444202,0.30420983,38711.0,38701.0,0.00146076]
[1643748444402,0.30420983,38711.0,38701.0,0.28423461]
[1643748445102,0.35420983,38711.0,38701.0,0.00146077]
[1643748445302,0.06461458,38707.0,38701.0,0.00146077]
[1643748445506,0.24474448,38706.0,38701.0,0.00146077]
[1643748445703,0.29474448,38706.0,38701.0,0.00146077]
[1643748446147,0.29474448,38706.0,38698.0,0.29018825]
[1643748446359,0.29474448,38706.0,38701.0,0.00146073]
[1643748447447,0.29474448,38706.0,38697.0,0.10726435]
[1643748447648,0.29474448,38706.0,38701.0,0.00146073]
[1643748448649,0.29474448,38706.0,38694.0,0.512]
[1643748448853,0.06462183,38703.0,38701.0,0.00146073]
[1643748449249,0.06431085,38703.0,38701.0,0.00146073]
[1643748449695,0.06431085,38703.0,38696.0,0.09323206]
[1643748449895,0.06431085,38703.0,38700.0,0.00080766]
[1643748450295,0.06431085,38703.0,38696.0,0.08654472]